Cogmind - Beta 16.1 @@@ ROGUE MODE // 2026.02.28 @ 19:34:44 Player: UniqueName Result: Destroyed by MB-OF5(R) with Subdweller Machine Gun Performance ------------- Evolutions (0) 0 Regions Visited (3) 600 Robots Destroyed (22) 110 Value Destroyed (795) 795 Prototype IDs (13) 260 Alien Tech Used (0) 0 Bonus (0) 0 TOTAL SCORE: 1765 Bonus ------- None Cogmind --------- Core Integrity 0/250 Matter 224/300 Energy 178/180 System Corruption 0% Temperature Cool (0) Movement Walking (140) Location -10/Subcaves Parts ------- > --- POWER (1) -------- Meta Core > --- PROPULSION (2+1) - Makeshift Leg Makeshift Leg Subdweller Monowheel (+) > --- UTILITY (2+1) ---- Scrap Shield Makeshift Hacking Suite (+) > --- WEAPON (2+1) ----- Assault Rifle Subdweller Machine Gun (+) Makeshift Spear > --- INVENTORY (5) ---- 1B-0RG's Assimilator Peak State ------------ > --- POWER ------------ Meta Core > --- PROPULSION ------- Makeshift Leg Makeshift Leg Subdweller Monowheel > --- UTILITY ---------- Scrap Shield Makeshift Hacking Suite > --- WEAPON ----------- Assault Rifle Subdweller Machine Gun Makeshift Spear > --- INVENTORY -------- 1B-0RG's Assimilator [Rating: 44] Favorites ----------- Power Subdweller Power Source Engine Subdweller Power Source Power Core Meta Core Propulsion Subdweller Monowheel Treads Light Treads Leg Makeshift Leg Wheel Subdweller Monowheel Utility Scrap Shield Device Subdweller Optics Storage Small Storage Unit Hackware Makeshift Hacking Suite Protection Scrap Shield Weapon Assault Rifle Energy Gun Subdweller Laser Ballistic Gun Assault Rifle Piercing Weapon Makeshift Spear Build | -11 -10 -10 -10 ------- Run | Yrd Mat Min Sub Slots Evolved . | . . . . Power . | . . . . Propulsion . | . . . . Utility . | . . . . Weapon . | . . . . Parts Attached 35 | 5 . . 30 Power 8 | . . . 8 Engine 7 | . . . 7 Core 1 | . . . 1 Reactor . | . . . . Propulsion 12 | 2 . . 10 Treads 3 | 2 . . 1 Leg 2 | . . . 2 Wheel 7 | . . . 7 Hover . | . . . . Flight . | . . . . Utility 8 | 1 . . 7 Device 3 | . . . 3 Storage 1 | 1 . . . Processor . | . . . . Hackware 1 | . . . 1 Protection 3 | . . . 3 Artifact . | . . . . Weapon 7 | 2 . . 5 Energy Gun 1 | . . . 1 Energy Cannon . | . . . . Ballistic Gun 5 | 2 . . 3 Ballistic Cannon . | . . . . Launcher . | . . . . Special Weapon . | . . . . Impact Weapon . | . . . . Slashing Weapon . | . . . . Piercing Weapon 1 | . . . 1 Special Melee Weapon . | . . . . Unidentified Prototypes 1 | . . . 1 Parts Lost 2 | . . . 2 Power . | . . . . Propulsion . | . . . . Utility 1 | . . . 1 Weapon 1 | . . . 1 Highest Loss Streak 1 | . . . 1 To Critical Strikes . | . . . . Average Backups 4 | 3 5 6 4 Power 1 | 1 2 3 1 Propulsion . | 1 2 2 . Utility . | . . . . Weapon 2 | . 1 1 2 Tool/Special . | . . . . Unused Backups 7 | . . . 7 Power 2 | . . . 2 Propulsion 2 | . . . 2 Utility . | . . . . Weapon 2 | . . . 2 Tool/Special 1 | . . . 1 Average Slot Usage (%) 84 | . 71 71 85 Engine 12 | . . . 12 Treads 2 | . 28 28 . Leg 2 | . . . 3 Wheel 22 | . . . 23 Storage 1 | . 14 14 . Protection 12 | . . . 12 Energy Gun 11 | . . . 12 Ballistic Gun 15 | . 28 28 14 Peak Build Rating 44 | 5 5 5 44 Average Rating 14 | 3 5 5 15 On Entrance 3 | . 5 5 5 Avg Prop Armor Cover (%) 2 | . . . 2 Naked Turns . | . . . . Heaviest Build 32 | 7 7 7 32 Greatest Support 40 | 40 40 40 40 Greatest Overweight (x) 9 | . . . 9 Average Overweight (x) 2 | . . . 2 Largest Inventory Capacity 8 | 8 8 8 8 Average Capacity 5 | 7 8 8 5 Most Carried 8 | 5 6 6 8 Average Carried 5 | 4 5 6 5 Final Capacity 8 | 8 8 8 5 Final Carried 6 | 5 6 6 5 Class Distribution -------------------- 81% | Subdweller-Mutant 9% | Scavenger-Mutant 8% | Mutant Dominant Class ---------------- Mutant | -10/Materials Mutant | -10/Mines Subdweller-Mutant | -10/Subcaves Resources | -11 -10 -10 -10 ----------- Run | Yrd Mat Min Sub Matter Collected 783 | 238 37 . 508 Remotely . | . . . . Salvage Created 848 | . 129 . 719 Parts 59 | . 7 . 52 Haulers Intercepted . | . . . . Recyclers Shooed . | . . . . Parts Field Recycled . | . . . . Retrieved Matter . | . . . . Parts Self-Destructed 14 | . . . 14 Prevented . | . . . . Parts Restored . | . . . . Kills | -11 -10 -10 -10 ------- Run | Yrd Mat Min Sub Combat Hostiles Destroyed 20 | . 3 . 17 Guns 20 | . 3 . 17 Classes Destroyed 4 | . 1 . 3 Turret 2 | . . . 2 Swarmer 2 | . . . 2 Grunt 3 | . 3 . . Subdweller 15 | . . . 15 Best Kill Streak 3 | . 2 . 3 Combat Bots Only 3 | . 2 . 3 Max Kills in Single Turn 2 | . 1 . 2 Gunslinging 1 | . . . 1 Exploded . | . . . . Melee . | . . . . Uniques/NPCs Destroyed . | . . . . Combat | -11 -10 -10 -10 -------- Run | Yrd Mat Min Sub Hostile Shots Fired 156 | . 43 . 113 Missed 51 | . 14 . 37 Hits 105 | . 29 . 76 Projectile 105 | . 29 . 76 Critical Strikes 3 | . . . 3 Damage Taken 1761 | . 372 . 1389 Core 271 | . 55 . 216 Absorbed by Shields . | . . . . Core Remaining (%) 100 | 100 . . . Volleys Fired 91 | . 22 . 69 Largest 2 | . 2 . 2 Hottest 80 | . 40 . 80 Shots Fired 170 | . 44 . 126 Gun 170 | . 44 . 126 Cannon . | . . . . Launcher . | . . . . Special . | . . . . Kinetic 143 | . 44 . 99 Thermal 27 | . . . 27 Explosive . | . . . . Electromagnetic . | . . . . Robot Hit Streak 17 | . 6 . 17 Robot Miss Streak 6 | . 2 . 6 Penetration Max . | . . . . Secondary Targets 2 | . . . 2 Max Gunslinging Chain 1 | . . . 1 Shots Hit Robots 127 | . 31 . 96 Core Hits 50 | . 9 . 41 Critical Kills 2 | . . . 2 Critical Parts Destroyed . | . . . . Critical Strikes 2 | . . . 2 Destroy 2 | . . . 2 Melee Attacks 11 | . . . 11 Impact . | . . . . Slashing . | . . . . Piercing 11 | . . . 11 Sneak Attacks . | . . . . Combat Hostiles . | . . . . Follow-up Attacks . | . . . . Damage Inflicted 1607 | . 255 . 1352 Guns 1607 | . 255 . 1352 Cannons . | . . . . Explosions . | . . . . Melee . | . . . . Ramming . | . . . . Kinetic 1167 | . 255 . 912 Thermal 440 | . . . 440 Explosive . | . . . . Electromagnetic . | . . . . Impact . | . . . . Slashing . | . . . . Piercing . | . . . . Highest Corruption . | . . . . Average Corruption . | . . . . Corruption Purged . | . . . . Corruption Blocked . | . . . . Overload Shots . | . . . . Overflow Damage . | . . . . Projectiles . | . . . . Explosions . | . . . . Melee . | . . . . Knockbacks . | . . . . Impact . | . . . . Kinetic . | . . . . Secondary . | . . . . Self-Inflicted Damage . | . . . . Shots . | . . . . Rammed . | . . . . Targets Rammed . | . . . . Kicked . | . . . . Crushed . | . . . . Highest Temperature 10 | . 10 . . Average Temperature 3 | . 3 . . Received Heat Transfer 480 | . 207 . 273 Siege Activations . | . . . . Martial Activations . | . . . . Shielding Activations . | . . . . Robots Disrupted . | . . . . Combat Hostiles . | . . . . Robots Corrupted . | . . . . Combat Hostiles . | . . . . Parts Fried . | . . . . Impact Corruptions . | . . . . Robots Melted . | . . . . Combat Hostiles . | . . . . Parts Melted . | . . . . Heat Transferred 525 | . . . 525 Parts Sabotaged . | . . . . Parts Stolen . | . . . . Parts Stripped . | . . . . Power Chain Reactions . | . . . . Alert | -11 -10 -10 -10 ------- Run | Yrd Mat Min Sub Maximum Alert Level . | . . . . Low Security (%) 100 | 100 100 100 . Level 1 . | . . . . Level 2 . | . . . . Level 3 . | . . . . Level 4 . | . . . . Level 5 . | . . . . High Security . | . . . . Max Security . | . . . . Peak Influence 60 | . 60 12 . Initial 12 | . . 12 . Average 11 | . 16 5 . Influence Increases 232 | . 97 . 135 Destroy 0b10 Robot/C 140 | . 60 . 80 Destroy Leader 30 | . 20 . 10 Successful Hack 17 | . 17 . . Lose Combat Pursuer 45 | . . . 45 Influence Decreases 97 | . 65 32 . Entered New Map 20 | . . 20 . Time Decay 77 | . 65 12 . Squads Dispatched 2 | . 2 . . Investigation 2 | . 2 . . Extermination . | . . . . Reinforcement . | . . . . Assault . | . . . . Garrison . | . . . . Intercept . | . . . . Searches Triggered . | . . . . Construction Impeded . | . . . . Haulers Reinforced . | . . . . Active Scanning Responses . | . . . . Cargo Convoy Interrupts . | . . . . Stealth | -11 -10 -10 -10 --------- Run | Yrd Mat Min Sub Distress Signals . | . . . . Communications Jammed . | . . . . Distress Signals . | . . . . Times Spotted 29 | . 6 . 23 Peak Tracking Total 3 | . 3 . 3 Tactical Retreats 1 | . . . 1 Traps | -11 -10 -10 -10 ------- Run | Yrd Mat Min Sub Traps Triggered 2 | . 1 . 1 Indirectly . | . . . . Trap Hack Attempts . | . . . . Triggered . | . . . . Disarmed . | . . . . Reprogrammed . | . . . . Reused . | . . . . Traps Extracted . | . . . . Installed . | . . . . Triggered . | . . . . Machines | -11 -10 -10 -10 ---------- Run | Yrd Mat Min Sub Machines Disabled 2 | . . . 2 Max in Single Turn 1 | . . . 1 Machines Repaired . | . . . . Machines Dismantled . | . . . . Machines Sabotaged . | . . . . Overloaded Fab Kills . | . . . . Hacking | -11 -10 -10 -10 --------- Run | Yrd Mat Min Sub Machines Accessed 4 | . 2 . 2 Terminals 2 | . 2 . . Fabricators . | . . . . Repair Stations . | . . . . Recycling Units . | . . . . Scanalyzers . | . . . . Garrison Access . | . . . . Total Hacks 22 | . 8 . 14 Successful 17 | . 3 . 14 Failed 5 | . 5 . . Catastrophic . | . . . . Database Lockouts . | . . . . Manual 1 | . 1 . . Terminals 8 | . 8 . . Fabricators . | . . . . Repair Stations . | . . . . Recycling Units . | . . . . Scanalyzers . | . . . . Garrison Access . | . . . . Terminal Hacks 17 | . 3 . 14 Record 13 | . . . 13 Reinforcement Status 1 | . 1 . . Registered Components 1 | . 1 . . Zone Layout 1 | . 1 . . Proto ID Catalog 1 | . . . 1 Fabricator Hacks . | . . . . Repair Station Hacks . | . . . . Recycling Unit Hacks . | . . . . Scanalyzer . | . . . . Garrison Access Hacks . | . . . . Unauthorized Hacks . | . . . . Terminals . | . . . . Fabricators . | . . . . Repair Stations . | . . . . Recycling Units . | . . . . Scanalyzers . | . . . . Garrison Access . | . . . . Data Cores Recovered . | . . . . Used . | . . . . Hacking Detections 2 | . 2 . . Full Trace Events 2 | . 2 . . Feedback Events . | . . . . Feedback Blocked . | . . . . Robot Schematics Acquired . | . . . . Robots Built . | . . . . Authchips . | . . . . Time . | . . . . Total Robot Build Rating . | . . . . Part Schematics Acquired . | . . . . Parts Built . | . . . . Authchips . | . . . . Time . | . . . . Total Part Build Rating . | . . . . Part Studies Acquired . | . . . . Parts Repaired . | . . . . Time . | . . . . Parts Recycled . | . . . . Recycled Matter . | . . . . Retrieved Matter . | . . . . Retrieved Components . | . . . . Parts Scanalyzed . | . . . . Part Schematics Acquired . | . . . . Parts Damaged . | . . . . Bothacking | -11 -10 -10 -10 ------------ Run | Yrd Mat Min Sub Used RIF Installer . | . . . . Robots Hacked . | . . . . Non-combat . | . . . . Combat . | . . . . Robot Hacks Applied . | . . . . Relay Couplers Released . | . . . . Fabnet Peak Effective % . | . . . . Robots Rewired . | . . . . Allies Hacked . | . . . . Hacks Repelled . | . . . . Allies | -11 -10 -10 -10 -------- Run | Yrd Mat Min Sub Total Allies . | . . . . Largest Group . | . . . . Highest-Rated Group . | . . . . Highest-Rated Ally . | . . . . Total Orders . | . . . . Ally Attacks . | . . . . Total Damage . | . . . . Kills . | . . . . Allies Corrupted . | . . . . Allies Melted . | . . . . Intel | -11 -10 -10 -10 ------- Run | Yrd Mat Min Sub Active Infowar (turns) 233 | . . . 233 Optics 233 | . . . 233 Robot Analysis Total . | . . . . Derelict Logs Recovered 2 | . . . 2 Drone Launches . | . . . . Drone Recoveries . | . . . . Exploration | -11 -10 -10 -10 ------------- Run | Yrd Mat Min Sub Turns Passed 5824 | 73 246 52 5453 Spaces Moved 2455 | 54 118 33 2250 Core 594 | 23 . . 571 Treads 260 | 31 118 33 78 Legs 439 | . . . 439 Wheels 1162 | . . . 1162 Hover . | . . . . Flight . | . . . . Fastest Speed 50 | 50 160 160 110 Average Speed 220 | 113 160 160 226 Slowest Speed 500 | 160 160 160 500 Overloaded Moves . | . . . . Propulsion Burnouts . | . . . . Robots Hopped . | . . . . Potential Cave-ins . | . . . . Cave-ins Triggered . | . . . . Exploration Rate (%) 27 | 3 20 9 77 Regions Visited 3 Branch Regions 2 Pre-discovered Areas 2 | . . . 2 Known Exits Taken . | . . . . Unknown Exits Taken 3 | 1 1 1 . Scrap Searched 5 | . . . 5 Spaces Dug . | . . . . Terrain Destroyed . | . . . . Melee . | . . . . Projectile . | . . . . AOE . | . . . . Terrain Rammed . | . . . . Walls Destroyed . | . . . . Machines Disabled . | . . . . Actions | -11 -10 -10 -10 --------- Run | Yrd Mat Min Sub Total 2711 | 64 140 32 2475 Wait 51 | . . . 51 Move 2452 | 53 117 32 2250 Hop . | . . . . Pick Up 18 | 6 1 . 11 Fast Attach 22 | 4 . . 18 Attach 4 | 1 . . 3 Detach . | . . . . Swap 16 | . . . 16 Drop 34 | . . . 34 Fire 91 | . 22 . 69 Melee 11 | . . . 11 Ram . | . . . . Kick . | . . . . Crush . | . . . . Escape Stasis . | . . . . Rewire . | . . . . Trap . | . . . . Miscellaneous 12 | . . . 12 Route ------- -11/Scrapyard -10/Materials -10/Mines -10/Subcaves (discovered 2 exits: [*Mat] / [*Rec]) History --------- Turn | Location | Event 2 | -11/Scrapyard | Met Revision 17 7 | -11/Scrapyard | Discovered new exit (range 14) 74 | -11/Scrapyard | Entered Materials 158 | -10/Materials | Discovered new exit (range 14) 303 | -10/Materials | Build established: Mutant 320 | -10/Materials | Entered Mines 364 | -10/Mines | Discovered new exit (range 6) 372 | -10/Mines | Entered Subcaves 373 | -10/Subcaves | Ambushed by Subdwellers from Twisted Machinery 373 | -10/Subcaves | Approached by a straggling Scientist 613 | -10/Subcaves | Core integrity fell below 50% 642 | -10/Subcaves | Core integrity fell below 20% 939 | -10/Subcaves | Build established: Subdweller-Mutant 1024 | -10/Subcaves | A swath of the cavern ceiling suddenly collapsed 1046 | -10/Subcaves | Visited Clippyterm 1050 | -10/Subcaves | Learned location of Section 7 (-2) 1050 | -10/Subcaves | Learned 40 Factory zone layouts 1246 | -10/Subcaves | Shifting Twisted Machinery released Sub. Shrapnel Launcher 1580 | -10/Subcaves | Shifting Twisted Machinery released Mak. Hacking Suite 2417 | -10/Subcaves | Shifting Twisted Machinery released Sub. Power Source 3835 | -10/Subcaves | Curiously followed by a Cobbler waking with a query about "LVR3C" 4372 | -10/Subcaves | A Subdweller sparked back to life 4372 | -10/Subcaves | A Subdweller sparked back to life 4372 | -10/Subcaves | A Subdweller sparked back to life 4437 | -10/Subcaves | Found Prototype Device 4437 | -10/Subcaves | Identified Power Bank 4439 | -10/Subcaves | Attached Power Bank, gained temporary slots: Power x3 4700 | -10/Subcaves | Build established: Scavenger-Mutant 4746 | -10/Subcaves | Learned Materials terminal intel 4860 | -10/Subcaves | Discovered new exit (range 9) 5055 | -10/Subcaves | Build established: Subdweller-Mutant 5498 | -10/Subcaves | Visited 4L-MR0's lab 5547 | -10/Subcaves | Found Meta Core 5549 | -10/Subcaves | Attached Meta Core, gained temporary slots: Propulsion, Utility, Weapon 5555 | -10/Subcaves | Found Prototype Special Melee Weapon 5809 | -10/Subcaves | Discovered new exit (range 8) 5825 | -10/Subcaves | Destroyed by MB-OF5(R) with Subdweller Machine Gun Last Messages --------------- >>Record! "Uberlauncher" I hear [REDACTED] exploded during the installation process. I did warn them to fully install it before trying to fire, and something tells me that's where things went wrong. Still I'm glad they didn't listen, that way I'm not culpable for whatever they would've done with it. If we're lucky even some of the others got blasted, too. 05542_ Testing Chamber breached. 05547_ Dropped Sub. Power Source. 05547_ Acquired Meta Core. 05549_ Core temporarily expanded with Propulsion slot. 05549_ Core temporarily expanded with Utility slot. 05549_ Core temporarily expanded with Weapon slot. 05552_ Dropped Mak. Power Source. 05553_ Dropped Sub. Laser. 05553_ Dropped Sub. Shrapnel Launcher. 05555_ Acquired Prototype Special Melee Weapon. 05565_ BL-QWA(O) puts together Sub. Power Source. 05581_ Acquired Sub. Monowheel. 05583_ Subatomizers dissect the Sub. Monowheel. 05809_ EXIT=FOUND Map ----- +----------------------------------------------------+ | ??????## ## ##?????# #?# ##????????## | | ####??#" " #?????## ##?# ##?????????# | | #??# ##??########??# ##??????????# | | #### #### #??????## ###??????????# | | # # #??????## #???????????# | | ##??#### ###???????????#" | | ## #?## # #?????????????## | | # # # # ## ## ### ###????????????# | | ## ######### ## ### ##???????????# | | ?###???????## #?# #######????## | | ????????????# ## ## " " ###??# | | ????????????## ####?## ### "## ##?## | | ?????????????### ##?????##?## * " "## ###" | | ??????????????## ##????????## "## """ "" | | ?????????????## ##????????# #?#"" | | ?????????????# ##??????## #?## " | | ?????????????# ######## ""#??### "## | | ?????????????## ## ## ## ""##????####? | | ??????????????# ### ######?????????? | | ??????????????##??## ##??????????????? | | ???????????????????## ##???????????????? | | ????????????????????# ## ####????????????????? | | ????????????????????# ### #???????????????????? | | ????????????????????# # ##??????????????????? | | ???????????????????## #??????????????????? | | ???????# ## R @ ##??????????????????? | | ????????# # ##???????????????????? | | ?????????# ## #????????????????????? | | ?????????### ## # ### ### ##?????????????????#### | | ??????????????#?##??# ??# #??????????????#####"%" | | ???????????????????? ?? ??????????????#*[####& | | ??????????????????? ?? # ?????????????#"*####& | | ??????????????????"< ??# ## ?????????????## ] ##" | | ?????????????????" #??###? ????????????#" ### | | ????????????????? ""??????? ???????????#"" #?# | | ?????????????????##""???????? ???????????#"X #?# | | ??????????????????## ???????? ??????????#"" #?# | | ?????????????????????????????% ??????????#" *!### | | ?????????????????????????????? ??????????#"* &##* | | ??????????????????????????????? ??????????# #+##= | | ??????????????????????????????????????????#""#&## | | ??????????????????????????????????????????#### * & | | ?????????????????????????????????????????????#"""/ | | ?????????????????????????????????????????????##### | | ?????????????????????????????????????????????????? | | ?????????????????????????????????????????????????? | | ?????????????????????????????????????????????????? | | ?????###?????????????????????????????????????????? | | ????## #?????????????????????????????????????????? | | #???# #????????????????????????????????????????## | +----------------------------------------------------+ Best States ------------- Heat Dissipation 25 Energy Generation 17 Energy Capacity 250 Matter Stores 300 Matter Capacity 300 Sight Range 21 Terrain Scan Density 10 Armor Coverage 800 Propulsion Shielding 33 Evasion (%) 55 Recoil Reduction 2 Offensive Hacking 11 Item Schematics ----------------- None Robot Schematics ------------------ None Fabricated ------------ Nothing Repaired ---------- Nothing Studied --------- None Alien Tech Used ----------------- None Achievements -------------- Survival Of The Most Covered You Again Challenges ------------ None Game ------ Seed PiercelightRagnarokBoregun Manual? 0 Play Time 00:32:35 Cumulative 27.2 hours Start 2026.02.28 @ 18:32:35 End 2026.02.28 @ 19:34:44 Sessions 1 Manual Loads 0 Difficulty Rogue Special Mode None Game No. 28 Rogue 28 Adventurer 0 Explorer 0 Win Type - Total 0 Types 0/0/0/0/0/0/0/0/0/0 Lore% 22 Gallery% 27 Achievement% 25 Wizard Run 0 Options --------- Layout 0 ASCII 0 Keyboard 0 Movement Arrows Keybinds 0 Fullscreen 1 Font 18/SmallcapsGlow Map View 76x50 Zoom Use 0% Tactical HUD 1 Map Filters NONE Filters NONE Steam 1 RUN: 7646ebfd-bf77-408f-b984-9d35af0a832f